Cogmind - Beta 11 X8 @@@ ROGUE MODE // 2021.11.29 @ 02:23:22 Player: youngster Result: Destroyed by H-88 Terminator with KE Penetrator Performance ------------- Evolutions (9) 4500 Regions Visited (27) 5400 Robots Destroyed (307) 1535 Value Destroyed (15895) 15895 Prototype IDs (32) 640 Alien Tech Used (0) 0 Bonus (12218) 12218 TOTAL SCORE: 40188 Bonus ------- High Alert Combat Kills 3229 Follower Combat Kills 2349 Entered Garrisons 400 Used RIF Installer 1000 Network Hubs Disabled 200 Met Imprinter 300 Met Zhirov 300 Met Warlord at Base 500 MAIN.C Attacked Warlord 500 Warlord Defense Kill 3248 Built Enhanced Grunts 300 Met R17 at Cetus 500 Friendly Fire -608 Cogmind --------- Core Integrity 0/1600 Matter 257/300 Energy 69/100 System Corruption 23% Temperature Cool (0) Movement Core (50) Location -1/Access Parts ------- > --- POWER (3) -------- (None) > --- PROPULSION (6) --- (None) > --- UTILITY (10) ----- Improved Signal Interpreter Advanced Targeting Computer Improved Target Analyzer Advanced Target Analyzer > --- WEAPON (6) ------- (None) > --- INVENTORY (5) ---- Point Defense Array Relay Coupler [NC] (37) Heavy Machine Gun KE Penetrator Gamma Bomb Array Peak State ------------ > --- POWER ------------ Light Antimatter Reactor Quantum Reactor > --- PROPULSION ------- Improved Medium Treads Advanced Medium Treads Advanced Medium Treads Wheel Compact Wheel Compact Wheel > --- UTILITY ---------- Experimental Heat Sink Huge Storage Unit Energy Well Improved Signal Interpreter Improved Target Analyzer Weapon Cycler Centrium Medium Armor Plating Centrium Medium Armor Plating Improved Force Field > --- WEAPON ----------- BFG-9k Vortex Edition > --- INVENTORY -------- Light Antimatter Reactor High-capacity Matter Pod Advanced Sensor Array Improved Terrain Scanner Improved Force Field Point Defense Array Relay Coupler [Programmer] Enhanced Nova Cannon Railgun Railgun Improved KE Penetrator Helical Railgun Heavy Gauss Cannon Heavy Gauss Cannon Heavy Gauss Cannon Precision Grenade Launcher Advanced Datajack RU-N14's Throwing Claymores v3 [Rating: 177] Favorites ----------- Power Cooled Deuterium Engine Engine Cooled Deuterium Engine Power Core Light Fission Core Reactor Quantum Reactor Propulsion Medium Treads Treads Medium Treads Leg Myomer Leg Wheel Armored Wheel Utility Improved Signal Interpreter Device Sensor Array Storage High-capacity Storage Unit Processor Improved Signal Interpreter Hackware Relay Coupler [Sentry] Protection Centrium Medium Armor Plating Weapon Assault Rifle Energy Cannon Compact HERF Cannon Ballistic Gun Assault Rifle Ballistic Cannon Battle Cannon Launcher Precision Grenade Launcher Special Weapon RU-N14's Throwing Claymores v3 Slashing Weapon Ripper Piercing Weapon CR-A16's Behemoth Slayer Special Melee Weapon Advanced Datajack Build | -11 -10 -10 -10 -9 -8 -7 -7 -7 -7 -6 -6 -6 -6 -6 -6 -5 -5 -5 -5 -4 -4 -3 -2 -2 -2 -2 -1 ------- Run | Scr Mat Min Exi Min Mat Fac Low Low Zio Pro Fac Ext Cet Arc Hub Fac Upp Upp War Pro Fac Res Res Gar Res Gar Acc Slots Evolved 18 | . . . . . 4 2 . . . . 2 . . . . 2 . . . . 2 2 2 . . . 2 Power 2 | . . . . . . . . . . . . . . . . 1 . . . . . . . . . . 1 Propulsion 4 | . . . . . 2 . . . . . 1 . . . . . . . . . . . 1 . . . . Utility 8 | . . . . . 2 1 . . . . 1 . . . . 1 . . . . 1 . 1 . . . 1 Weapon 4 | . . . . . . 1 . . . . . . . . . . . . . . 1 2 . . . . . Parts Attached 436 | 7 16 6 2 7 47 48 16 11 8 14 21 32 6 . 5 10 4 7 9 8 39 3 4 26 3 37 40 Power 27 | 1 . . . . 2 2 . . . . 1 1 . . . 1 . . 1 . 5 1 1 3 1 3 4 Engine 6 | 1 . . . . 2 1 . . . . 1 1 . . . . . . . . . . . . . . . Core 4 | . . . . . . 1 . . . . . . . . . . . . 1 . 1 . . 1 . . . Reactor 17 | . . . . . . . . . . . . . . . . 1 . . . . 4 1 1 2 1 3 4 Propulsion 92 | 2 . . 1 . 20 11 1 . . 1 3 10 1 . 1 . . 1 1 . 7 2 . 9 . 11 10 Treads 63 | 2 . . . . 17 11 1 . . 1 3 10 1 . 1 . . 1 1 . 3 1 . 3 . 4 3 Leg 18 | . . . . . . . . . . . . . . . . . . . . . 1 . . 3 . 7 7 Wheel 11 | . . . 1 . 3 . . . . . . . . . . . . . . . 3 1 . 3 . . . Hover . | . . . . . . . . . . . . . . . . . . . . . . . . . . . . Flight . | . . . . . . . . . . . . . . . . . . . . . . . . . . . . Utility 171 | 1 8 2 1 . 18 21 6 6 2 9 13 15 3 . 2 7 4 5 2 2 14 . 3 4 1 9 13 Device 85 | . 4 . . . 6 12 3 3 1 5 9 8 . . 1 5 4 2 1 1 8 . 2 . 1 3 6 Storage 10 | 1 2 . 1 . 1 . . . . . . 1 . . . . . . . . 1 . . 1 . 1 1 Processor 12 | . . . . . 4 1 . . . . 1 1 . . . . . . . 1 1 . . . . 1 2 Hackware 9 | . . . . . . . . . . . . . 1 . . . . . . . 1 . . . . 3 4 Protection 55 | . 2 2 . . 7 8 3 3 1 4 3 5 2 . 1 2 . 3 1 . 3 . 1 3 . 1 . Artifact . | . . . . . . . . . . . . . . . . . . . . . . . . . . . . Weapon 146 | 3 8 4 . 7 7 14 9 5 6 4 4 6 2 . 2 2 . 1 5 6 13 . . 10 1 14 13 Energy Gun . | . . . . . . . . . . . . . . . . . . . . . . . . . . . . Energy Cannon 4 | . . . . . . . . . . . . . . . . . . . . . . . . 1 . 1 2 Ballistic Gun 66 | 3 5 2 . 4 5 7 4 3 1 1 . 1 1 . 2 1 . 1 1 5 6 . . 3 . 7 3 Ballistic Cannon 16 | . . . . . . . . . 2 1 2 2 . . . . . . . . 4 . . 2 1 1 1 Launcher 27 | . 3 2 . 3 2 1 2 2 1 . 1 2 . . . . . . 1 1 . . . 2 . 2 2 Special Weapon 7 | . . . . . . . . . . . . . . . . . . . 2 . 3 . . 2 . . . Impact Weapon . | . . . . . . . . . . . . . . . . . . . . . . . . . . . . Slashing Weapon 12 | . . . . . . 6 3 . . . . . . . . . . . . . . . . . . . 3 Piercing Weapon 9 | . . . . . . . . . 2 2 1 1 1 . . 1 . . 1 . . . . . . . . Special Melee Weapon 5 | . . . . . . . . . . . . . . . . . . . . . . . . . . 3 2 Unidentified Prototypes 11 | . . . . . 1 1 . . 1 . 1 . 3 . . 1 . . 1 . 1 . . 1 . . . Corrupted Parts 1 | . . . . . . . . . . . . . . . 1 . . . . . . . . . . . . System Corruption 5 | . . . . . . . . . . . . . . . 5 . . . . . . . . . . . . Parts Lost 111 | . . . . . 5 8 . . . . 1 7 . . 1 . . 1 . . 19 1 1 13 . 17 37 Power 21 | . . . . . 1 2 . . . . . 1 . . 1 . . . . . 5 1 . 1 . 3 6 Propulsion 44 | . . . . . 3 4 . . . . 1 3 . . . . . 1 . . 4 . . 7 . 6 15 Utility 23 | . . . . . 1 1 . . . . . 1 . . . . . . . . 5 . . 3 . 3 9 Weapon 23 | . . . . . . 1 . . . . . 2 . . . . . . . . 5 . 1 2 . 5 7 Highest Loss Streak 22 | . . . . . 2 4 . . . . 1 3 . . 1 . . 1 . . 9 1 1 3 . 6 22 Average Slot Usage (%) 93 | . 98 100 100 100 99 98 99 100 99 100 99 98 93 93 91 87 88 87 87 88 83 80 83 84 86 86 75 Engine 5 | . 14 14 14 14 9 6 7 7 7 7 6 5 6 6 6 . . . . . . . . . . . . Reactor 2 | . . . . . . . . . . . . . . . . 5 5 5 5 5 7 6 8 5 4 4 8 Treads 22 | . 28 28 27 14 33 29 30 30 30 30 32 32 26 26 24 23 23 22 18 17 11 6 8 10 4 10 . Leg 1 | . . . . . . . . . . . . . . . . . . . . . . . . 3 8 7 18 Wheel 1 | . . . . 14 2 . . . . . . . . . . . . . . . 2 12 13 8 13 6 . Device 6 | . 11 7 . . 1 3 5 6 . 6 10 5 . . 3 10 11 6 4 5 10 9 12 13 13 13 9 Storage 7 | . 14 14 14 14 9 7 7 7 7 7 6 6 6 6 6 5 5 5 5 5 5 4 4 7 8 8 5 Processor 16 | . . . . . 16 23 23 23 23 23 20 20 26 26 26 23 23 23 23 23 16 9 8 8 8 8 16 Protection 4 | . . 6 14 14 8 3 1 . 6 . . 7 3 6 2 . . 3 5 5 7 9 10 8 8 1 . Ballistic Gun 14 | . 28 23 28 27 17 21 17 22 9 4 . 4 11 13 15 15 11 16 9 16 11 4 4 9 13 14 4 Ballistic Cannon 2 | . . . . . . . . . 5 15 18 10 1 . . . . . . . 3 9 8 3 . 3 . Piercing Weapon 1 | . . . . . . . . . 5 1 1 1 5 6 3 1 5 . . . . . . . . . . Naked Turns . | . . . . . . . . . . . . . . . . . . . . . . . . . . . . Heaviest Build 183 | 14 31 32 52 53 62 68 71 71 71 72 78 116 113 110 112 121 112 126 143 137 160 156 183 178 178 178 166 Greatest Support 180 | 40 40 40 40 10 84 96 96 96 96 106 128 130 170 170 170 170 170 170 180 180 180 42 42 86 36 143 150 Greatest Overweight (x) 51 | . . . 5 5 5 1 . . . . . . . . . . . . . . 11 5 4 10 4 6 51 Average Overweight (x) . | . . . . 5 1 . . . . . . . . . . . . . . . 1 3 3 4 4 1 . Largest Inventory Capacity 25 | 8 15 15 20 20 20 20 20 20 20 20 20 25 25 25 25 25 25 25 25 25 25 25 25 25 25 25 25 Average Capacity 21 | 7 13 15 15 20 20 20 20 20 20 20 20 20 25 25 25 25 25 25 25 25 25 25 25 25 25 25 23 Most Carried 25 | 4 15 15 15 20 20 20 20 20 20 20 20 23 25 25 25 25 25 25 25 25 25 25 25 25 25 25 25 Average Carried 20 | 2 10 14 15 19 19 19 20 20 19 19 19 19 24 25 24 23 24 24 24 25 23 23 24 24 24 24 22 Final Capacity 25 | 8 15 15 20 20 20 20 20 20 20 20 20 25 25 25 25 25 25 25 25 25 25 25 25 25 25 25 5 Final Carried 25 | 4 15 15 15 20 20 20 20 20 20 20 19 23 25 25 24 25 25 25 25 25 23 25 25 25 24 25 5 Class Distribution -------------------- 23% | Mutant 21% | Scavenger-Mutant 8% | Scavenger-Gunner 7% | Derelict-Skirmisher 6% | Derelict-Mutant 6% | Gunner 5% | Assassin 5% | Scavenger-Assassin 4% | Scavenger-Tank Dominant Class ---------------- Mutant | -10/Materials Mutant | -10/Mines Mutant | -10/Exiles Mutant | -9/Mines Mutant | -8/Materials Gunner | -7/Factory Assassin | -7/Lower Caves Derelict-Skirmisher | -7/Lower Caves Derelict-Mutant | -7/Zion Derelict-Skirmisher | -6/Proximity Caves Mutant | -6/Factory Gunner | -6/Extension Commander-Mutant | -6/Cetus Commander-Mutant | -6/Archives Scavenger-Mutant | -6/Hub_04(d) Scavenger-Gunner | -5/Factory Scavenger-Assassin | -5/Upper Caves Scavenger-Gunner | -5/Upper Caves Scavenger-Mutant | -5/Warlord Scavenger-Gunner | -4/Proximity Caves Scavenger-Skirmisher | -4/Factory Scavenger-Mutant | -3/Research Scavenger-Mutant | -2/Research Scavenger-Mutant | -2/Garrison Scavenger-Tank | -2/Research Scavenger-Mutant | -2/Garrison Scavenger-Mutant | -1/Access Resources | -11 -10 -10 -10 -9 -8 -7 -7 -7 -7 -6 -6 -6 -6 -6 -6 -5 -5 -5 -5 -4 -4 -3 -2 -2 -2 -2 -1 ----------- Run | Scr Mat Min Exi Min Mat Fac Low Low Zio Pro Fac Ext Cet Arc Hub Fac Upp Upp War Pro Fac Res Res Gar Res Gar Acc Matter Collected 11301 | 324 610 246 . 119 1278 832 424 187 70 163 389 1151 154 . 84 . 140 196 119 125 825 93 . 1667 . 1410 695 Remotely 1069 | . 83 . . . 123 . . . . . . 341 . . . . . . 98 . 424 . . . . . . Salvage Created 12846 | 153 618 177 . 119 1613 903 506 167 . 79 235 1115 . . 71 . 139 166 489 306 1031 273 . 1861 . 861 1964 Parts 569 | 12 28 9 . 10 85 56 9 5 . 6 6 46 . . 2 . 2 4 13 21 54 10 . 55 . 26 110 Haulers Intercepted 7 | . 2 . . . 2 1 . . . . . . . . . . . . . . 1 1 . . . . . Recyclers Shooed 4 | . 1 . . . 1 1 . . . . . . . . . . . . . . . . . . . . 1 Parts Field Recycled . | . . . . . . . . . . . . . . . . . . . . . . . . . . . . Retrieved Matter . | . . . . . . . . . . . . . . . . . . . . . . . . . . . . Parts Self-Destructed 55 | . . . . . . . 7 6 . 9 . . . . . . 2 3 11 17 . . . . . . . Prevented 18 | . . . . . . . 2 . . . . . . . . . . 1 13 2 . . . . . . . Kills | -11 -10 -10 -10 -9 -8 -7 -7 -7 -7 -6 -6 -6 -6 -6 -6 -5 -5 -5 -5 -4 -4 -3 -2 -2 -2 -2 -1 ------- Run | Scr Mat Min Exi Min Mat Fac Low Low Zio Pro Fac Ext Cet Arc Hub Fac Upp Upp War Pro Fac Res Res Gar Res Gar Acc Combat Hostiles Destroyed 246 | . 8 5 . 3 31 22 6 4 . 1 6 16 . . . . . 3 27 8 25 6 . 36 . 14 25 Melee 14 | . . . . . . . . . . . . 2 . . . . . . . . . . . . . . 12 Guns 99 | . 4 2 . 1 25 20 2 4 . . . 2 . . . . . 3 . 4 4 . . 12 . 10 6 Cannons 29 | . . . . . . . . . . . 3 9 . . . . . . 2 . 5 2 . 6 . 1 1 AOE 100 | . 4 3 . 2 6 2 4 . . . 3 2 . . . . . . 25 4 16 4 . 18 . 3 4 Classes Destroyed 20 | 2 5 1 . . 2 1 1 . . 1 . 2 . . . . . 1 3 . . . . . . . 1 Worker 8 | . 1 . . 1 . 1 . . . . 1 . . . 1 . . . . . 3 . . . . . . Builder 8 | . . . . . . . . . . . . 1 . . . . . . . . 6 . . . . . 1 Tunneler 9 | 4 . 1 . 1 . . . . . . . . . . . . . . . . 2 . . . . . 1 Hauler 7 | . 2 . . . 2 1 . . . . . . . . . . . . . . 1 1 . . . . . Recycler 16 | 1 3 . . 1 2 . . . . . 1 3 . . . . . . . . 3 1 . . . . 1 Operator 2 | . . . . . . . . . . . . 1 . . . . . . . . . . . . . . 1 Watcher 8 | . 1 . . . 3 . . . . . . 1 . . . . . . . . 3 . . . . . . Swarmer 47 | . 3 3 . 2 3 9 . . . . . . . . . . . . . 4 2 . . 18 . . 3 Saboteur 1 | . . . . . . . . . . . . . . . . . . . . . . . . . . . 1 Grunt 113 | . 5 1 . 1 19 8 5 4 . . 3 6 . . . . . 1 19 . 11 3 . 10 . 6 11 Brawler 5 | . . . . . 2 . . . . . 1 . . . . . . . 1 . 1 . . . . . . Duelist 7 | . . . . . 1 . . . . . . 1 . . . . . . . . 1 1 . 3 . . . Protector 1 | . . . . . . . . . . . . . . . . . . . 1 . . . . . . . . Sentry 27 | . . 2 . . 6 4 . . . . 1 8 . . . . . . . . 1 . . 2 . 3 . Specialist 3 | . . . . . . . . . . . . . . . . . . . 2 . . . . . . 1 . Hunter 17 | . . . . . . . 1 . . . 1 . . . . . . 2 . 2 4 . . 2 . 2 3 Programmer 21 | . . . . . . 1 . . . . . . . . . . . . 3 2 5 2 . . . 1 7 Behemoth 4 | . . . . . . . . . . 1 . 1 . . . . . . . . . . . 1 . 1 . Executioner 1 | . . . . . . . . . . . . . . . . . . . 1 . . . . . . . . Packrat 1 | . . . . . . . 1 . . . . . . . . . . . . . . . . . . . . Samaritan 1 | . . . . . . . . . . . . . . . . . . 1 . . . . . . . . . Thug 1 | . . . . . . . . . . . . 1 . . . . . . . . . . . . . . . Guerrilla 1 | . . . . . . . . . . . . . . . 1 . . . . . . . . . . . . Best Kill Streak 14 | 3 5 3 . 2 6 4 3 3 . 1 4 5 . . 1 . . 2 12 4 13 8 . 14 . 4 9 Combat Bots Only 14 | . 5 3 . 2 5 4 3 3 . 1 4 4 . . . . . 2 12 4 10 6 . 14 . 4 7 Max Kills in Single Turn 5 | 1 3 3 . 1 2 2 2 1 . 1 2 1 . . 1 . . 1 4 3 5 2 . 4 . 1 2 Gunslinging . | . . . . . . . . . . . . . . . . . . . . . . . . . . . . Exploded 4 | . 3 2 . 1 1 2 2 . . . 2 1 . . . . . . 4 3 3 2 . 4 . 1 1 Melee 1 | . . . . . . . . . . . . 1 . . . . . . . . . . . . . . 1 Uniques/NPCs Destroyed . | . . . . . . . . . . . . . . . . . . . . . . . . . . . . Combat | -11 -10 -10 -10 -9 -8 -7 -7 -7 -7 -6 -6 -6 -6 -6 -6 -5 -5 -5 -5 -4 -4 -3 -2 -2 -2 -2 -1 -------- Run | Scr Mat Min Exi Min Mat Fac Low Low Zio Pro Fac Ext Cet Arc Hub Fac Upp Upp War Pro Fac Res Res Gar Res Gar Acc Damage Taken 25422 | . 243 373 . 97 1804 1797 189 320 . 366 623 1195 171 . 546 . . 780 348 128 3914 309 142 2605 . 2981 6491 Core 3069 | . 76 58 . 17 104 326 28 . . 47 10 48 27 . . . . 54 49 . 176 45 9 231 . 148 1616 Absorbed by Shields 3014 | . . . . . . . . . . . 116 357 . . . . . . . . 119 . 106 1449 . 650 217 Reduced by Siege Mode 38 | . . . . . . . . . . . . . . . . . . . . . 38 . . . . . . Core Remaining (%) 77 | 100 . . . 39 81 . . . . 42 . . . . 90 . . . . 89 84 96 . . . 73 . Volleys Fired 590 | 9 41 13 . 11 117 57 11 7 . 1 18 36 . . 1 . . 12 14 7 50 9 . 82 3 55 36 Largest 5 | 2 2 2 . 2 2 3 3 3 . 3 3 3 . . 1 . . 3 2 3 4 3 . 4 1 5 3 Hottest 300 | 40 40 40 . 43 48 76 71 71 . 101 131 140 . . 28 . . 84 35 105 218 152 . 300 61 300 300 Shots Fired 1350 | 18 79 24 . 18 222 164 27 21 . 3 45 102 2 1 1 . . 36 15 17 123 15 . 202 3 147 65 Gun 969 | 18 76 22 . 14 212 163 24 21 . 1 . 14 2 1 1 . . 36 1 15 55 3 . 133 1 106 50 Cannon 285 | . . . . . . . . . . 2 41 85 . . . . . . . . 51 7 . 55 2 34 8 Launcher 56 | . 3 2 . 4 10 1 3 . . . 4 3 . . . . . . . 2 . . . 10 . 7 7 Special 40 | . . . . . . . . . . . . . . . . . . . 14 . 17 5 . 4 . . . Kinetic 1245 | 18 76 22 . 14 212 163 24 21 . 3 41 99 2 1 1 . . 36 1 15 106 10 . 187 3 137 53 Thermal . | . . . . . . . . . . . . . . . . . . . . . . . . . . . . Explosive 91 | . 3 2 . 4 10 1 3 . . . 4 3 . . . . . . 14 2 17 5 . 14 . 7 2 Electromagnetic 5 | . . . . . . . . . . . . . . . . . . . . . . . . . . . 5 Entropic 9 | . . . . . . . . . . . . . . . . . . . . . . . . 1 . 3 5 Robot Hit Streak 43 | 3 13 8 . 6 39 18 20 17 . 3 10 30 . . . . . 13 14 6 8 5 . 37 . 43 11 Robot Miss Streak 11 | 1 3 1 . 5 3 3 5 2 . 1 4 2 3 4 . . . 3 . 2 11 2 . 3 . 3 3 Penetration Max 1 | . . . . . . . . . . . . 1 . . . . . . . . 1 . . 1 . 1 1 Secondary Targets 15 | . . . . . 4 . . 1 . . . . . . . . . . . . 1 . . 4 . 1 4 Max Gunslinging Chain 1 | . . . . . 1 . . 1 . . . . . . . . . . . . 1 . . 1 . 1 1 Shots Hit Robots 1015 | 10 59 19 . 8 173 120 26 20 . 8 31 84 . . . . 3 28 13 9 60 8 . 142 . 106 88 Core Hits 651 | 6 26 10 . 7 76 51 20 17 . 3 18 44 . . 7 . 2 22 50 10 71 14 . 100 . 41 56 Critical Kills 12 | . . . . . . . . . . . . . . . . . . . . 3 4 . . 3 . 2 . Critical Parts Destroyed 27 | . 1 . . 1 . . . . . . . 1 1 . . . . . . 1 4 . . 11 . 3 4 Critical Strikes 89 | . 1 . . 1 . . . . . . 3 8 1 . . . . 1 3 4 22 1 . 24 . 9 11 Destroy 40 | . 1 . . 1 . . . . . . . 1 1 . . . . . . 4 8 . . 14 . 6 4 Blast 25 | . . . . . . . . . . . 3 4 . . . . . . . . 8 . . 7 . 3 . Sever 18 | . . . . . . . . . . . . . . . . . . . 3 . 6 1 . 2 . . 6 Puncture 4 | . . . . . . . . . . . . 3 . . . . . 1 . . . . . . . . . Sunder 2 | . . . . . . . . . . . . . . . . . . . . . . . . 1 . . 1 Melee Attacks 127 | . . . . . . 7 4 . 7 8 7 9 . . 1 1 6 1 4 . . . . . . 9 63 Impact . | . . . . . . . . . . . . . . . . . . . . . . . . . . . . Slashing 53 | . . . . . . 7 4 . . . . . . . . . . . . . . . . . . . 42 Piercing 44 | . . . . . . . . . 7 8 7 9 . . 1 1 6 1 4 . . . . . . . . Sneak Attacks 21 | . . . . . . . . . . . . 3 . . . . . 1 . . . . . . . . 17 Combat Hostiles 1 | . . . . . . . . . . . . 1 . . . . . . . . . . . . . . . Follow-up Attacks 1 | . . . . . . . . . . . . . . . . . . . . . . . . . . . 1 Damage Inflicted 47192 | 142 964 407 . 402 3588 2385 1129 306 . 202 1045 2685 50 . 215 . 260 588 6164 471 7048 1907 19 6067 . 4749 6399 Guns 13900 | 142 730 230 . 87 2605 2176 293 306 . . . 281 50 . . . . 436 27 237 929 58 . 2243 . 1981 1089 Cannons 8858 | . . . . . . . . . . 37 554 1718 . . . . . . . . 884 133 . 1650 . 1979 1903 Explosions 18831 | . 214 173 . 304 959 185 401 . . . 488 284 . . 201 . . . 5574 234 4572 1470 . 1976 . 773 1023 Melee 3751 | . . . . . . . 435 . . 165 . 363 . . . . 260 152 . . . . . . . . 2376 Ramming 223 | . 20 4 . 11 24 24 . . . . 3 39 . . 14 . . . . . 21 20 19 . . 16 8 Kinetic 19192 | 142 730 230 . 87 2605 2176 293 306 . 37 554 1999 50 . . . . 436 27 237 1813 191 . 3468 . 2638 1173 Thermal 442 | . . . . . . . . . . . . . . . . . . . . . 273 . . . . . 169 Explosive 17668 | . 214 173 . 304 959 185 401 . . . 488 284 . . . . . . 5574 234 4299 1470 . 1976 . 773 334 Electromagnetic 721 | . . . . . . . . . . . . . . . 201 . . . . . . . . . . . 520 Impact . | . . . . . . . . . . . . . . . . . . . . . . . . . . . . Slashing 4440 | . . . . . . . 435 . . . . . . . . . . . 563 . 642 226 . 198 . . 2376 Piercing 940 | . . . . . . . . . . 165 . 363 . . . . 260 152 . . . . . . . . . Entropic 3566 | . . . . . . . . . . . . . . . . . . . . . . . . 425 . 1322 1819 Highest Corruption 23 | . . . . . 4 2 . . . . 5 5 5 5 16 . . . 2 2 7 1 . . . 5 23 Average Corruption 4 | . . . . . 4 1 . . . . 1 5 5 5 7 . . . 2 2 6 1 . . . 3 3 Corruption Purged 3 | . . . . . . 3 . . . . . . . . . . . . . . . . . . . . . Effects 153 | . . . . . 11 . . . . . 1 36 11 2 12 . . . . 5 17 2 . . . 31 25 Message Errors 37 | . . . . . 2 . . . . . . 9 . . 3 . . . . 3 . 2 . . . 10 8 Matter Fused 33 | . . . . . 4 . . . . . . 8 4 . 2 . . . . . 5 . . . . 7 3 Heat Flow Errors 20 | . . . . . 2 . . . . . . 4 2 . 1 . . . . . 2 . . . . 5 4 Energy Discharges 16 | . . . . . 1 . . . . . . 3 1 . 1 . . . . 1 2 . . . . 4 3 Parts Rejected 7 | . . . . . 1 . . . . . . 1 . . 1 . . . . . 4 . . . . . . Data Loss (minor) 20 | . . . . . 1 . . . . . . 3 1 1 3 . . . . 1 3 . . . . 5 2 Data Loss (major) 3 | . . . . . . . . . . . . 1 1 . . . . . . . 1 . . . . . . Misfires 7 | . . . . . . . . . . . . 4 2 1 . . . . . . . . . . . . . Misdirections 4 | . . . . . . . . . . . . . . . 1 . . . . . . . . . . . 3 Weapon Failures 6 | . . . . . . . . . . . 1 3 . . . . . . . . . . . . . . 2 Overload Shots . | . . . . . . . . . . . . . . . . . . . . . . . . . . . . Overflow Damage 2420 | . . . . 8 . . 301 . . . . 66 . . . . 28 65 131 . 214 114 . 57 . . 1436 Projectiles 1166 | . . . . . . . . . . . . 7 . . . . . . 8 . 2 43 . 4 . . 1102 Explosions 615 | . . . . 8 . . . . . . . . . . . . . . 123 . 212 71 . 53 . . 148 Melee 639 | . . . . . . . 301 . . . . 59 . . . . 28 65 . . . . . . . . 186 Knockbacks 46 | . . . . . . . . . . . 4 18 . . . . . . . . 6 1 . 13 . 3 1 Impact . | . . . . . . . . . . . . . . . . . . . . . . . . . . . . Kinetic 41 | . . . . . . . . . . . 4 16 . . . . . . . . 6 1 . 10 . 3 1 Secondary 5 | . . . . . . . . . . . . 2 . . . . . . . . . . . 3 . . . Self-Inflicted Damage 439 | . . . . . 32 38 . . . . . . . . 101 . . . . . 114 . . . . 56 98 Shots 10 | . . . . . 1 1 . . . . . . . . 1 . . . . . 2 . . . . 2 3 Rammed 26 | . 3 1 . 1 4 2 . . . . . 2 . . 1 . . . . . 2 2 3 1 . 2 2 Targets Rammed 31 | . 4 2 . 2 4 2 . . . . 1 3 . . 1 . . . . . 2 2 3 1 . 2 2 Kicked . | . . . . . . . . . . . . . . . . . . . . . . . . . . . . Crushed 5 | . 1 1 . 1 . . . . . . 1 1 . . . . . . . . . . . . . . . Highest Temperature 494 | . 4 17 . 8 252 133 3 12 . 12 283 329 103 . 180 . . 24 26 135 430 48 . 248 18 452 494 Average Temperature 69 | . 2 7 . 8 43 38 3 5 . 8 110 98 55 . 99 . . 11 16 62 107 32 . 39 13 87 142 Received Heat Transfer 4166 | . 135 99 . 9 990 354 90 153 . 36 84 449 27 . . . . 63 112 . 406 27 20 288 . 545 279 Effects 4 | . . . . . . . . . . . . 1 . . . . . . . . 1 . . 1 . . 1 Energy Bleed 2 | . . . . . . . . . . . . . . . . . . . . . . . . 1 . . 1 Matter Decay 1 | . . . . . . . . . . . . 1 . . . . . . . . . . . . . . . Damage (minor) 1 | . . . . . . . . . . . . . . . . . . . . . 1 . . . . . . Siege Activations 1 | . . . . . . . . . . . . . . . . . . . . . 1 . . . . . . Total Turns 10 | . . . . . . . . . . . . . . . . . . . . . 10 . . . . . . Longest Duration 10 | . . . . . . . . . . . . . . . . . . . . . 10 . . . . . . Robots Corrupted 3 | . . . . . . . . . . . . . . . 1 . . . . . . . . . . . 2 Combat Hostiles 2 | . . . . . . . . . . . . . . . . . . . . . . . . . . . 2 Parts Fried 4 | . . . . . . . . . . . . . . . 1 . . . . . . . . . . . 3 Impact Corruptions 1 | . . . . . . . . . . . . 1 . . . . . . . . . . . . . . . Robots Melted . | . . . . . . . . . . . . . . . . . . . . . . . . . . . . Combat Hostiles . | . . . . . . . . . . . . . . . . . . . . . . . . . . . . Parts Melted 1 | . . . . . . . . . . . . . . . . . . . . . . . . . . . 1 Heat Transferred 300 | . . . . . . . . . . . . . . . . . . . . . 150 . . . . . 150 Parts Sabotaged . | . . . . . . . . . . . . . . . . . . . . . . . . . . . . Parts Stolen . | . . . . . . . . . . . . . . . . . . . . . . . . . . . . Parts Stripped . | . . . . . . . . . . . . . . . . . . . . . . . . . . . . Power Chain Reactions 4 | . . . . . . . . . . . . . . . 1 . . . . . . . . . . . 3 Missiles Intercepted . | . . . . . . . . . . . . . . . . . . . . . . . . . . . . Alert | -11 -10 -10 -10 -9 -8 -7 -7 -7 -7 -6 -6 -6 -6 -6 -6 -5 -5 -5 -5 -4 -4 -3 -2 -2 -2 -2 -1 ------- Run | Scr Mat Min Exi Min Mat Fac Low Low Zio Pro Fac Ext Cet Arc Hub Fac Upp Upp War Pro Fac Res Res Gar Res Gar Acc Peak Influence 1674 | 25 227 398 . 167 580 584 . . . . 209 631 682 509 639 262 . . . . 1095 787 466 1674 947 1282 1099 Initial 941 | . 16 64 . . . 253 . . . . 18 28 196 192 177 252 . . . . 56 574 442 342 941 710 768 Average 449 | 11 113 222 . 16 277 374 . . . . 108 280 456 294 428 219 . . . . 240 702 444 1205 941 1095 496 Maximum Alert Level 5 | . 1 1 . . 2 2 . . . . 1 2 2 2 2 1 . . . . 3 3 2 5 3 4 3 Low Security (%) 38 | 100 87 26 . 100 50 . . . . . 96 34 8 61 15 17 . . . . 68 . . . . . 51 Level 1 21 | . 12 73 . . 14 66 . . . . 3 44 24 6 13 82 . . . . 8 . . 4 . . . Level 2 15 | . . . . . 34 33 . . . . . 20 67 32 70 . . . . . 12 41 100 13 . . . Level 3 14 | . . . . . . . . . . . . . . . . . . . . . 10 58 . 14 100 51 48 Level 4 9 | . . . . . . . . . . . . . . . . . . . . . . . . 54 . 48 . Level 5 . | . . . . . . . . . . . . . . . . . . . . . . . . 13 . . . High Security . | . . . . . . . . . . . . . . . . . . . . . . . . . . . . Max Security . | . . . . . . . . . . . . . . . . . . . . . . . . . . . . Squads Dispatched 42 | . 3 . . . 6 9 . . . . 2 3 . . 1 1 . . . . 4 1 1 . 1 . 10 Investigation 13 | . 2 . . . 2 3 . . . . . 3 . . . 1 . . . . . . . . 1 . 1 Extermination 9 | . . . . . . 3 . . . . 1 . . . . . . . . . 2 . . . . . 3 Reinforcement 14 | . 1 . . . 3 2 . . . . 1 . . . . . . . . . 1 1 1 . . . 4 Assault 2 | . . . . . . . . . . . . . . . . . . . . . 1 . . . . . 1 Garrison 4 | . . . . . 1 1 . . . . . . . . 1 . . . . . . . . . . . 1 Intercept . | . . . . . . . . . . . . . . . . . . . . . . . . . . . . Construction Impeded 1 | . . . . . . . . . . . . . . . . . . . . . . . . . . . 1 Haulers Reinforced 3 | . . . . . . 1 . . . . . . . . . . . . . . . . 1 . . . 1 Active Scanning Responses . | . . . . . . . . . . . . . . . . . . . . . . . . . . . . Cargo Convoy Interrupts . | . . . . . . . . . . . . . . . . . . . . . . . . . . . . Stealth | -11 -10 -10 -10 -9 -8 -7 -7 -7 -7 -6 -6 -6 -6 -6 -6 -5 -5 -5 -5 -4 -4 -3 -2 -2 -2 -2 -1 --------- Run | Scr Mat Min Exi Min Mat Fac Low Low Zio Pro Fac Ext Cet Arc Hub Fac Upp Upp War Pro Fac Res Res Gar Res Gar Acc Distress Signals 13 | . 1 . . . 3 1 . . . . . 2 2 . 1 . . . . . 3 . . . . . . Communications Jammed . | . . . . . . . . . . . . . . . . . . . . . . . . . . . . Distress Signals . | . . . . . . . . . . . . . . . . . . . . . . . . . . . . Times Spotted 401 | . 14 12 . 7 45 33 5 7 . 6 8 33 14 . 9 . . 3 22 8 33 8 3 43 2 26 60 Peak Tracking Total 11 | . 3 3 . 3 5 4 3 4 . 3 4 7 5 . 4 . . 2 11 2 11 4 3 6 5 8 11 Tactical Retreats 20 | . . . . 1 . 2 . . . . . 1 . . . . . . . . . . . 8 . 3 5 Traps | -11 -10 -10 -10 -9 -8 -7 -7 -7 -7 -6 -6 -6 -6 -6 -6 -5 -5 -5 -5 -4 -4 -3 -2 -2 -2 -2 -1 ------- Run | Scr Mat Min Exi Min Mat Fac Low Low Zio Pro Fac Ext Cet Arc Hub Fac Upp Upp War Pro Fac Res Res Gar Res Gar Acc Traps Triggered 22 | . . . . . . . . . . . 1 2 . . . 1 . . . . 2 1 . 9 . 6 . Indirectly . | . . . . . . . . . . . . . . . . . . . . . . . . . . . . Trap Hack Attempts . | . . . . . . . . . . . . . . . . . . . . . . . . . . . . Triggered . | . . . . . . . . . . . . . . . . . . . . . . . . . . . . Disarmed . | . . . . . . . . . . . . . . . . . . . . . . . . . . . . Reprogrammed . | . . . . . . . . . . . . . . . . . . . . . . . . . . . . Reused . | . . . . . . . . . . . . . . . . . . . . . . . . . . . . Traps Extracted . | . . . . . . . . . . . . . . . . . . . . . . . . . . . . Installed . | . . . . . . . . . . . . . . . . . . . . . . . . . . . . Triggered 7 | . . . . . . . 2 . . . . . . . . . . 1 4 . . . . . . . . Exploded 1 | . . . . . . 1 . . . . . . . . . . . . . . . . . . . . . Machines | -11 -10 -10 -10 -9 -8 -7 -7 -7 -7 -6 -6 -6 -6 -6 -6 -5 -5 -5 -5 -4 -4 -3 -2 -2 -2 -2 -1 ---------- Run | Scr Mat Min Exi Min Mat Fac Low Low Zio Pro Fac Ext Cet Arc Hub Fac Upp Upp War Pro Fac Res Res Gar Res Gar Acc Machines Disabled 50 | . . . . 2 4 . . . . . 2 2 3 2 4 . . . . . 15 1 . 7 . 7 1 Max in Single Turn 3 | . . . . 1 2 . . . . . 1 1 . 1 3 . . . . . 2 1 . 2 . 1 1 Garrison Access 7 | . . . . . 1 2 . . . . . . . . 1 1 . . . . 1 . . . . . 1 Garrison Relay 6 | . . . . . . . . . . . . . . . . . . . . . . . . 2 . 4 . Network Hub 1 | . . . . . . . . . . . . . . . 1 . . . . . . . . . . . . Energy Cycler 1 | . . . . . . . . . . . . . . . . . . . . . . . . . . . 1 Machines Sabotaged . | . . . . . . . . . . . . . . . . . . . . . . . . . . . . Garrisons Compromised . | . . . . . . . . . . . . . . . . . . . . . . . . . . . . Overloaded Fab Kills . | . . . . . . . . . . . . . . . . . . . . . . . . . . . . Hacking | -11 -10 -10 -10 -9 -8 -7 -7 -7 -7 -6 -6 -6 -6 -6 -6 -5 -5 -5 -5 -4 -4 -3 -2 -2 -2 -2 -1 --------- Run | Scr Mat Min Exi Min Mat Fac Low Low Zio Pro Fac Ext Cet Arc Hub Fac Upp Upp War Pro Fac Res Res Gar Res Gar Acc Machines Accessed 68 | . 7 . 2 . 8 6 . 1 . . 8 11 1 . 3 3 . . 2 . 6 . 1 . 2 . 7 Terminals 39 | . 4 . . . 5 3 . . . . 5 11 1 . 2 1 . . . . 1 . . . 1 . 5 Fabricators 3 | . . . . . . . . . . . . . . . . . . . . . 2 . . . . . 1 Repair Stations 4 | . 1 . . . . . . . . . 2 . . . . 1 . . . . . . . . . . . Recycling Units 5 | . 2 . . . 1 . . . . . 1 . . . . . . . . . 1 . . . . . . Scanalyzers 4 | . . . . . 1 1 . . . . . . . . . . . . . . 2 . . . . . . Garrison Access 8 | . . . . . 1 2 . . . . . . . . 1 1 . . . . . . 1 . 1 . 1 Total Hacks 198 | . 26 . 2 . 20 22 . 1 . . 25 22 4 . 9 12 . . 5 . 29 . 2 . 5 . 14 Successful 102 | . 15 . 2 . 12 9 . 1 . . 13 11 1 . 5 4 . . 5 . 18 . 1 . 2 . 3 Failed 95 | . 10 . . . 8 13 . . . . 12 11 3 . 4 8 . . . . 11 . 1 . 3 . 11 Catastrophic 17 | . 2 . . . 3 3 . . . . 1 . . . . 2 . . . . . . . . 2 . 4 Database Lockouts 1 | . 1 . . . . . . . . . . . . . . . . . . . . . . . . . . Manual 79 | . 22 . . . 13 2 . . 5 . 11 4 1 . 5 5 . . . . 2 . . . 4 . 5 Terminals 123 | . 22 . . . 16 10 . . . . 16 22 4 . 8 5 . . . . 4 . . . 4 . 12 Fabricators 5 | . . . . . . . . . . . . . . . . . . . . . 4 . . . . . 1 Repair Stations 12 | . 2 . . . . . . . . . 7 . . . . 3 . . . . . . . . . . . Recycling Units 7 | . 2 . . . 1 . . . . . 2 . . . . . . . . . 2 . . . . . . Scanalyzers 28 | . . . . . 2 7 . . . . . . . . . . . . . . 19 . . . . . . Garrison Access 15 | . . . . . 1 5 . . . . . . . . 1 4 . . . . . . 2 . 1 . 1 Terminal Hacks 36 | . 3 . 2 . 4 1 . 1 . . 4 9 1 . 2 1 . . 5 . 1 . . . . . 2 Record 8 | . . . 2 . . . . 1 . . . . . . . . . . 4 . . . . . . . 1 Prototype ID Bank 9 | . 3 . . . 3 . . . . . 2 . . . 1 . . . . . . . . . . . . Open Door 9 | . . . . . . . . . . . . 7 1 . . . . . 1 . . . . . . . . Level Access Points 1 | . . . . . . . . . . . . . . . 1 . . . . . . . . . . . . Branch Access Points 4 | . . . . . . 1 . . . . 1 . . . . 1 . . . . . . . . . . 1 Garrison Index 1 | . . . . . . . . . . . . . . . . . . . . . 1 . . . . . . Unreport Threat 2 | . . . . . . . . . . . . 2 . . . . . . . . . . . . . . . Locate Traps 1 | . . . . . 1 . . . . . . . . . . . . . . . . . . . . . . Hauler Manifests 1 | . . . . . . . . . . . 1 . . . . . . . . . . . . . . . . Fabricator Hacks 3 | . . . . . . . . . . . . . . . . . . . . . 3 . . . . . . Network Status 1 | . . . . . . . . . . . . . . . . . . . . . 1 . . . . . . Load Schematic 1 | . . . . . . . . . . . . . . . . . . . . . 1 . . . . . . Build 1 | . . . . . . . . . . . . . . . . . . . . . 1 . . . . . . Repair Station Hacks 6 | . 2 . . . . . . . . . 3 . . . . 1 . . . . . . . . . . . Scan Component 4 | . 1 . . . . . . . . . 2 . . . . 1 . . . . . . . . . . . Repair 2 | . 1 . . . . . . . . . 1 . . . . . . . . . . . . . . . . Recycling Unit Hacks 4 | . . . . . . . . . . . 2 . . . . . . . . . 2 . . . . . . Retrieve Matter 3 | . . . . . . . . . . . 2 . . . . . . . . . 1 . . . . . . Retrieve Components 1 | . . . . . . . . . . . . . . . . . . . . . 1 . . . . . . Scanalyzer 16 | . . . . . 1 4 . . . . . . . . . . . . . . 11 . . . . . . Insert Component 8 | . . . . . 1 2 . . . . . . . . . . . . . . 5 . . . . . . Analyze 8 | . . . . . . 2 . . . . . . . . . . . . . . 6 . . . . . . Garrison Access Hacks 8 | . . . . . 1 2 . . . . . . . . 1 1 . . . . . . 1 . 1 . 1 Unlock Access 2 | . . . . . . . . . . . . . . . . . . . . . . . 1 . 1 . . Seal Access 6 | . . . . . 1 2 . . . . . . . . 1 1 . . . . . . . . . . 1 Unauthorized Hacks 29 | . 10 . . . 6 2 . . . . 4 2 . . 2 1 . . . . 1 . . . 1 . . Terminals 26 | . 8 . . . 5 2 . . . . 4 2 . . 2 1 . . . . 1 . . . 1 . . Track 4 | . 3 . . . 1 . . . . . . . . . . . . . . . . . . . . . . Botnet 20 | . 4 . . . 3 2 . . . . 4 2 . . 2 1 . . . . 1 . . . 1 . . Operators 2 | . 1 . . . 1 . . . . . . . . . . . . . . . . . . . . . . Fabricators . | . . . . . . . . . . . . . . . . . . . . . . . . . . . . Repair Stations . | . . . . . . . . . . . . . . . . . . . . . . . . . . . . Recycling Units 3 | . 2 . . . 1 . . . . . . . . . . . . . . . . . . . . . . Tunnel 3 | . 2 . . . 1 . . . . . . . . . . . . . . . . . . . . . . Scanalyzers . | . . . . . . . . . . . . . . . . . . . . . . . . . . . . Garrison Access . | . . . . . . . . . . . . . . . . . . . . . . . . . . . . Data Cores Recovered 1 | . . . . . . . . . . . . . . . 1 . . . . . . . . . . . . Used . | . . . . . . . . . . . . . . . . . . . . . . . . . . . . Hacking Detections 48 | . 5 . . . 6 5 . . . . 8 8 1 . 2 2 . . . . 3 . . . 2 . 6 Full Trace Events 10 | . 1 . . . 1 3 . . . . . 2 . . . 1 . . . . . . . . 1 . 1 Feedback Events . | . . . . . . . . . . . . . . . . . . . . . . . . . . . . Feedback Blocked . | . . . . . . . . . . . . . . . . . . . . . . . . . . . . Robot Schematics Acquired . | . . . . . . . . . . . . . . . . . . . . . . . . . . . . Robots Built . | . . . . . . . . . . . . . . . . . . . . . . . . . . . . Authchips . | . . . . . . . . . . . . . . . . . . . . . . . . . . . . Time . | . . . . . . . . . . . . . . . . . . . . . . . . . . . . Total Robot Build Rating . | . . . . . . . . . . . . . . . . . . . . . . . . . . . . Part Schematics Acquired 4 | . . . . . . 2 . . . . . . . . . . . . . . 2 . . . . . . Parts Built . | . . . . . . . . . . . . . . . . . . . . . . . . . . . . Authchips 1 | . . . . . . . . . . . . . . . . . . . . . 1 . . . . . . Time 102 | . . . . . . . . . . . . . . . . . . . . . 102 . . . . . . Total Part Build Rating . | . . . . . . . . . . . . . . . . . . . . . . . . . . . . Parts Repaired 2 | . 1 . . . . . . . . . 1 . . . . . . . . . . . . . . . . Time 73 | . 38 . . . . . . . . . 35 . . . . . . . . . . . . . . . . Parts Recycled . | . . . . . . . . . . . . . . . . . . . . . . . . . . . . Recycled Matter . | . . . . . . . . . . . . . . . . . . . . . . . . . . . . Retrieved Matter . | . . . . . . . . . . . . . . . . . . . . . . . . . . . . Retrieved Components 2 | . . . . . . . . . . . . . . . . . . . . . 2 . . . . . . Parts Scanalyzed 5 | . . . . . . 2 . . . . . . . . . . . . . . 3 . . . . . . Part Schematics Acquired 4 | . . . . . . 2 . . . . . . . . . . . . . . 2 . . . . . . Parts Damaged . | . . . . . . . . . . . . . . . . . . . . . . . . . . . . Bothacking | -11 -10 -10 -10 -9 -8 -7 -7 -7 -7 -6 -6 -6 -6 -6 -6 -5 -5 -5 -5 -4 -4 -3 -2 -2 -2 -2 -1 ------------ Run | Scr Mat Min Exi Min Mat Fac Low Low Zio Pro Fac Ext Cet Arc Hub Fac Upp Upp War Pro Fac Res Res Gar Res Gar Acc Used RIF Installer 2 | . . . . . . . . . . . . . . . . . . . . . . . . 1 . 1 . Watcher Feeds 1 | . . . . . . . . . . . . . . . . . . . . . . . . . . 1 . Robots Hacked 16 | . . . . . . . . . . . . . . . . . . . . . . . . . . 6 10 Non-combat 7 | . . . . . . . . . . . . . . . . . . . . . . . . . . . 7 Combat 9 | . . . . . . . . . . . . . . . . . . . . . . . . . . 6 3 Robot Hacks Applied 22 | . . . . . . . . . . . . . . . . . . . . . . . . . . 6 16 no_distress 1 | . . . . . . . . . . . . . . . . . . . . . . . . . . . 1 ignore_repairs 2 | . . . . . . . . . . . . . . . . . . . . . . . . . . . 2 drop_inventory 3 | . . . . . . . . . . . . . . . . . . . . . . . . . . . 3 purge_threat 6 | . . . . . . . . . . . . . . . . . . . . . . . . . . . 6 find_terminals 1 | . . . . . . . . . . . . . . . . . . . . . . . . . . . 1 overload_power 1 | . . . . . . . . . . . . . . . . . . . . . . . . . . 1 . formatsys_high 8 | . . . . . . . . . . . . . . . . . . . . . . . . . . 5 3 Relay Couplers Released 26 | . . . . . . . . . . . . . . . . . . . . . 2 . . 7 . 15 2 Machine Destruction 26 | . . . . . . . . . . . . . . . . . . . . . 2 . . 7 . 15 2 Attached 7 | . . . . . . . . . . . . . . . . . . . . . . . . . . 3 4 Fabnet Peak Effective % . | . . . . . . . . . . . . . . . . . . . . . . . . . . . . Robots Rewired 9 | . . . . . . . . . . . . 9 . . . . . . . . . . . . . . . Allies Hacked 3 | . . . . . . . . . . . . . . . . . . . . . . . . . . . 3 Hacks Repelled 1 | . . . . . . . . . . . . . . . . . . . . . . . . . . . 1 Allies | -11 -10 -10 -10 -9 -8 -7 -7 -7 -7 -6 -6 -6 -6 -6 -6 -5 -5 -5 -5 -4 -4 -3 -2 -2 -2 -2 -1 -------- Run | Scr Mat Min Exi Min Mat Fac Low Low Zio Pro Fac Ext Cet Arc Hub Fac Upp Upp War Pro Fac Res Res Gar Res Gar Acc Total Allies 43 | . . 3 . 1 . . . . 4 . . 22 5 . . . . . . . . . . . . 5 3 Largest Group 21 | . . 3 . 1 . . . . 4 4 . 21 19 18 13 . . . . . . . . . . 5 4 Highest-Rated Group 1118 | . . 40 . 31 . . . . 101 101 . 853 1118 1093 777 . . . . . . . . . . 348 296 Highest-Rated Ally 159 | . . 16 . 31 . . . . 31 31 . 159 153 150 95 . . . . . . . . . . 84 84 Total Orders 11 | . . 2 . . . . . . . . . . . 2 1 . . . . . . . . . . 3 3 STAY 6 | . . 1 . . . . . . . . . . . . 1 . . . . . . . . . . 2 2 ROAM 1 | . . . . . . . . . . . . . . 1 . . . . . . . . . . . . . FOLLOW 4 | . . 1 . . . . . . . . . . . 1 . . . . . . . . . . . 1 1 Ally Attacks 455 | . . 28 . 15 . . . . . 52 . 92 109 41 63 . . . . . . . . . . 7 48 Total Damage 10157 | . . 258 . 193 . . . . . 756 . 2602 2281 935 1573 . . . . . . . . . . 231 1328 Kills 73 | . . 10 . 4 . . . . . 5 . 18 15 8 9 . . . . . . . . . . . 4 Allies Corrupted 5 | . . . . . . . . . . . . . . . 4 . . . . . . . . . . . 1 Allies Melted . | . . . . . . . . . . . . . . . . . . . . . . . . . . . . Intel | -11 -10 -10 -10 -9 -8 -7 -7 -7 -7 -6 -6 -6 -6 -6 -6 -5 -5 -5 -5 -4 -4 -3 -2 -2 -2 -2 -1 ------- Run | Scr Mat Min Exi Min Mat Fac Low Low Zio Pro Fac Ext Cet Arc Hub Fac Upp Upp War Pro Fac Res Res Gar Res Gar Acc Robot Analysis Total . | . . . . . . . . . . . . . . . . . . . . . . . . . . . . Derelict Logs Recovered 10 | . . 1 . 1 . . 1 1 3 2 . . . . . . . . . 1 . . . . . . . Drone Launches . | . . . . . . . . . . . . . . . . . . . . . . . . . . . . Drone Recoveries . | . . . . . . . . . . . . . . . . . . . . . . . . . . . . Exploration | -11 -10 -10 -10 -9 -8 -7 -7 -7 -7 -6 -6 -6 -6 -6 -6 -5 -5 -5 -5 -4 -4 -3 -2 -2 -2 -2 -1 ------------- Run | Scr Mat Min Exi Min Mat Fac Low Low Zio Pro Fac Ext Cet Arc Hub Fac Upp Upp War Pro Fac Res Res Gar Res Gar Acc Turns Passed 24819 | 152 721 948 624 993 1488 1307 1694 1146 1554 1028 826 1428 417 81 309 483 1224 801 1165 432 1175 235 144 1066 85 1901 1392 Spaces Moved 13270 | 72 336 549 390 601 668 619 985 667 915 592 434 660 232 35 184 291 750 458 681 249 505 137 88 418 50 905 799 Core 196 | 4 . . . . . . . . . . . . . . . . . . . . . . . . . . 192 Treads 10360 | 68 336 549 360 . 508 619 985 667 915 592 434 660 232 35 184 291 750 458 681 249 407 . . 51 . 326 3 Legs 905 | . . . . . . . . . . . . . . . . . . . . . . . . . . 301 604 Wheels 1809 | . . . 30 601 160 . . . . . . . . . . . . . . . 98 137 88 367 50 278 . Hover . | . . . . . . . . . . . . . . . . . . . . . . . . . . . . Flight . | . . . . . . . . . . . . . . . . . . . . . . . . . . . . Fastest Speed 50 | 50 160 160 155 155 150 160 165 165 165 162 164 160 160 160 160 160 160 160 160 160 150 138 138 138 150 118 50 Average Speed 161 | 153 160 160 159 155 157 163 165 165 165 164 164 160 160 160 160 160 160 160 160 160 188 145 148 184 150 177 126 Slowest Speed 2600 | 160 160 160 160 155 320 246 165 165 165 165 165 164 160 160 160 160 160 160 160 160 245 165 153 320 150 640 2600 Overloaded Moves . | . . . . . . . . . . . . . . . . . . . . . . . . . . . . Propulsion Burnouts . | . . . . . . . . . . . . . . . . . . . . . . . . . . . . Robots Hopped . | . . . . . . . . . . . . . . . . . . . . . . . . . . . . Cave-ins Triggered . | . . . . . . . . . . . . . . . . . . . . . . . . . . . . Exploration Rate (%) 53 | 5 60 97 88 99 49 23 95 86 87 84 13 86 66 59 20 8 90 61 75 47 16 7 5 50 4 80 25 Regions Visited 27 Branch Regions 15 Pre-discovered Areas 4 | . 2 . . . 1 . . . . 1 . . . . . . . . . . . . . . . . . Known Exits Taken 19 | . . . . . . 1 1 1 1 1 1 1 1 1 1 1 1 1 1 1 1 1 1 . 1 . . Unknown Exits Taken 6 | 1 1 1 1 1 1 . . . . . . . . . . . . . . . . . . . . . . Scrap Searched 15 | . . 1 . 2 . . 4 2 3 . . . . . . . 2 1 . . . . . . . . . Spaces Dug 92 | . 11 7 . . . 18 12 . . 2 4 . . . . 1 3 . 8 11 4 1 . 2 2 . 6 Terrain Destroyed 931 | . 29 10 . 48 33 18 30 . . 2 24 25 1 . 158 1 3 1 157 23 151 27 . 97 2 70 21 Melee 22 | . . . . . . 7 . . . 2 4 . . . . 1 3 . . . . . . . . . 5 Projectile 117 | . . . . . . . . . . . 1 6 1 . . . . 1 1 5 47 3 . 25 2 20 5 AOE 792 | . 29 10 . 48 33 11 30 . . . 19 19 . . 158 . . . 156 18 104 24 . 72 . 50 11 Terrain Rammed . | . . . . . . . . . . . . . . . . . . . . . . . . . . . . Walls Destroyed . | . . . . . . . . . . . . . . . . . . . . . . . . . . . . Machines Disabled . | . . . . . . . . . . . . . . . . . . . . . . . . . . . . Actions | -11 -10 -10 -10 -9 -8 -7 -7 -7 -7 -6 -6 -6 -6 -6 -6 -5 -5 -5 -5 -4 -4 -3 -2 -2 -2 -2 -1 --------- Run | Scr Mat Min Exi Min Mat Fac Low Low Zio Pro Fac Ext Cet Arc Hub Fac Upp Upp War Pro Fac Res Res Gar Res Gar Acc Total 15373 | 92 434 596 392 638 904 794 1026 693 948 623 499 928 290 60 194 305 765 495 738 266 637 155 97 586 60 1108 1050 Wait 415 | 2 20 18 . 12 30 37 2 7 5 5 8 37 24 26 3 . . 15 14 1 15 2 . 10 . 37 85 Move 13245 | 71 335 548 389 600 667 618 984 666 914 591 433 659 231 34 183 290 749 457 680 248 504 136 88 417 50 904 799 Hop . | . . . . . . . . . . . . . . . . . . . . . . . . . . . . Pick Up 156 | 3 12 4 . 5 17 12 2 . 4 1 6 6 13 . . 2 2 2 6 . 16 3 2 13 1 15 9 Fast Attach 107 | 6 4 . . . 3 3 3 . 6 1 2 4 3 . . 3 2 . 1 2 16 2 . 11 . 16 19 Attach 93 | . . . . . 9 9 . . . 1 4 5 . . 1 3 . 1 3 . 15 1 2 11 1 14 13 Detach 30 | . 2 . . . 1 2 . . . . . 1 1 . . 2 . . 1 . 2 . . 3 . 8 7 Swap 237 | 1 12 6 2 7 35 37 13 11 2 12 15 23 3 . 4 4 2 6 5 6 8 . 2 4 2 7 8 Drop 153 | . 4 5 1 1 21 10 7 2 10 3 5 6 15 . . . 4 1 10 2 9 . 1 9 3 15 9 Fire 590 | 9 41 13 . 11 117 57 11 7 . 1 18 36 . . 1 . . 12 14 7 50 9 . 82 3 55 36 Melee 123 | . . . . . . 7 4 . 7 8 7 9 . . 1 1 6 1 4 . . . . . . 9 59 Ram 2 | . . . . . . . . . . . . . . . . . . . . . . . . . . . 2 Kick . | . . . . . . . . . . . . . . . . . . . . . . . . . . . . Crush 28 | . 4 2 . 2 4 2 . . . . 1 3 . . 1 . . . . . 2 2 2 1 . 2 . Escape Stasis 46 | . . . . . . . . . . . . . . . . . . . . . . . . 25 . 21 . Rewire 148 | . . . . . . . . . . . . 139 . . . . . . . . . . . . . 5 4 Trap . | . . . . . . . . . . . . . . . . . . . . . . . . . . . . Miscellaneous . | . . . . . . . . . . . . . . . . . . . . . . . . . . . . Route ------- -11/Scrapyard -10/Materials (discovered 3 exits: [*Mat] / [*Min x2]) -10/Mines (discovered 3 exits: [*Mat x2] / *Exi) -10/Exiles -9/Mines (discovered 2 exits: *Mat x2) -8/Materials -7/Factory (discovered 2 exits: *Low x2) -7/Lower Caves -7/Lower Caves (discovered 2 exits: *Fac / *Zio) -7/Zion -6/Proximity Caves -6/Factory (discovered 6 exits: *Fac x2 / Low x2 / *Ext x2) -6/Extension (discovered 2 exits: *Fac / *Cet) -6/Cetus (discovered 2 exits: *Fac / *Arc) -6/Archives -6/Hub_04(d) (discovered 4 exits: *Fac x4) -5/Factory (discovered 3 exits: *Fac / *Upp x2) -5/Upper Caves -5/Upper Caves (discovered 2 exits: Fac / *War) -5/Warlord -4/Proximity Caves -4/Factory -3/Research (discovered 2 exits: *Res / Tes) -2/Research -2/Garrison (discovered 2 exits: *Res x2) -2/Research -2/Garrison (discovered 3 exits: *Acc x3) -1/Access (discovered 1 exit: Com) History --------- Turn | Location | Event 29 | -11/Scrapyard | Discovered new exit (range 16) 153 | -11/Scrapyard | Entered Materials 310 | -10/Materials | Build established: Mutant 348 | -10/Materials | Repaired Imp. Terrain Scanner 369 | -10/Materials | Discovered new exit (range 10) 423 | -10/Materials | Discovered new exit (range 9) 825 | -10/Materials | Discovered new exit (range 13) 853 | -10/Materials | Central database locked down 874 | -10/Materials | Entered Mines 889 | -10/Mines | Assisted by bots powering up and referring to "LRC-V3" 942 | -10/Mines | Learned Materials terminal intel 1073 | -10/Mines | Discovered new exit (range 9) 1200 | -10/Mines | Deemed a non-threat by the Exiles lab entrance 1200 | -10/Mines | Discovered new exit (range 5) 1398 | -10/Mines | Discovered new exit (range 7) 1442 | -10/Mines | Core integrity fell below 50% 1512 | -10/Mines | A weapon hastily lodged in a ceiling crevice suddenly fell to the ground 1822 | -10/Mines | Entered Exiles 1822 | -10/Exiles | Found Exiles lab abandoned 2427 | -10/Exiles | Discovered new exit (range 14) 2446 | -10/Exiles | Entered Mines 2453 | -9/Mines | Received a Rocket Launcher from a helpful Derelict 2585 | -9/Mines | Received a Mining Laser from a helpful Derelict 2590 | -9/Mines | Learned Materials garrison access intel 2819 | -9/Mines | Discovered new exit (range 7) 3123 | -9/Mines | Discovered new exit (range 9) 3439 | -9/Mines | Entered Materials 3439 | -8/Materials | Evolved 4 slots: Propulsion x2, Utility x2 3440 | -8/Materials | Loaded intel: 12 terminal locations 3441 | -8/Materials | Loaded intel: 1 garrison access location 4437 | -8/Materials | Garrison activated, responded to threat 4890 | -8/Materials | Discovered new exit (range 4) 4927 | -8/Materials | Entered Factory 4927 | -7/Factory | Evolved 2 slots: Utility x1, Weapon x1 5703 | -7/Factory | Lost 4 parts (2p1n1u) 5712 | -7/Factory | Garrison activated, responded to threat 5750 | -7/Factory | Build established: Gunner 5935 | -7/Factory | Identified exit to Lower Caves 5964 | -7/Factory | Noticed a derelict Sapper rigging charges 6234 | -7/Factory | Entered Lower Caves 6252 | -7/Lower Caves | Learned Factory terminal intel 6740 | -7/Lower Caves | Build established: Assassin 6799 | -7/Lower Caves | Encountered a Warlord checkpoint 7079 | -7/Lower Caves | Discovered new exit (range 13) 7095 | -7/Lower Caves | Identified exit to Lower Caves 7656 | -7/Lower Caves | Core integrity fell below 50% 7928 | -7/Lower Caves | Entered another Lower Caves area 7996 | -7/Lower Caves | Discovered new exit (range 6) 8028 | -7/Lower Caves | Identified exit to Factory 8140 | -7/Lower Caves | Encountered a Warlord checkpoint 8447 | -7/Lower Caves | Build established: Derelict-Skirmisher 8879 | -7/Lower Caves | Learned Factory interactive machine intel 9059 | -7/Lower Caves | Discovered new exit (range 11) 9065 | -7/Lower Caves | Attracted the attention of an 0b10 checkpoint 9072 | -7/Lower Caves | Identified exit to Zion 9074 | -7/Lower Caves | Entered Zion 9228 | -7/Zion | Found CR-A16's Pointy Stick 9257 | -7/Zion | Discovered new exit (range 18) 9287 | -7/Zion | Build established: Derelict-Mutant 9295 | -7/Zion | Gained Derelict followers 9395 | -7/Zion | Learned Factory garrison access intel 9440 | -7/Zion | Acquired unknown access codes intercepted by a Zionite 9752 | -7/Zion | Learned location of 1 exit from Lower Caves 9957 | -7/Zion | Opened final containment barrier to the Deep Caves 10118 | -7/Zion | Learned 8 Factory zone layouts 10143 | -7/Zion | Received a visual enhancement algorithm 10264 | -7/Zion | Given A8's code to call for help 10284 | -7/Zion | Learned Factory fabricator intel 10456 | -7/Zion | Found Relay Coupler [Programmer] 10623 | -7/Zion | Identified exit to Proximity Caves 10628 | -7/Zion | Entered Proximity Caves 10628 | -6/Proximity Caves | Accompanied by 4 allies 11053 | -6/Proximity Caves | Attracted the attention of an 0b10 checkpoint 11350 | -6/Proximity Caves | Build established: Derelict-Skirmisher 11501 | -6/Proximity Caves | Spotted B-75 Beast 11526 | -6/Proximity Caves | Revealed the true nature of CR-A16's Pointy Stick 11529 | -6/Proximity Caves | Destroyed B-75 Beast 11656 | -6/Proximity Caves | Entered Factory 11656 | -6/Factory | Evolved 2 slots: Propulsion x1, Utility x1 11657 | -6/Factory | Identified exit to Extension 11658 | -6/Factory | Loaded intel: 53 interactive machine locations 11659 | -6/Factory | Loaded intel: 27 terminal locations 11660 | -6/Factory | Loaded intel: 6 fabricator locations 11661 | -6/Factory | Loaded intel: 4 garrison access locations 11819 | -6/Factory | Discovered new exit (range 11) 11835 | -6/Factory | Identified exit to Factory 11939 | -6/Factory | Repaired Cld. Deuterium Engine 12058 | -6/Factory | Identified exit to Lower Caves 12074 | -6/Factory | Discovered exit to Factory (range 13) 12085 | -6/Factory | Build established: Mutant 12482 | -6/Factory | Entered Extension 12607 | -6/Extension | Lost 3 parts (1p1u1w) 12701 | -6/Extension | Build established: Gunner 12932 | -6/Extension | Disrupted transfer network 12967 | -6/Extension | Rescued a captive Derelict 12968 | -6/Extension | Rescued a captive Derelict 13129 | -6/Extension | Rescued a captive Derelict 13158 | -6/Extension | Enhanced Grunt warped into view, answering call for help 13163 | -6/Extension | Enhanced Grunt warped into view, answering call for help 13171 | -6/Extension | Rescued A7 13349 | -6/Extension | Build established: Mutant 13360 | -6/Extension | Spotted B-75 Beast 13368 | -6/Extension | Spotted B-75 Beast 13375 | -6/Extension | Allies destroyed B-75 Beast 13388 | -6/Extension | Destroyed B-75 Beast 13444 | -6/Extension | Rescued a captive Derelict 13447 | -6/Extension | Rescued a captive Derelict 13543 | -6/Extension | Rescued a captive Derelict 13546 | -6/Extension | Rescued a captive Derelict 13615 | -6/Extension | Rescued a captive Derelict 13689 | -6/Extension | Build established: Scavenger-Mutant 13781 | -6/Extension | Rescued a captive Derelict 13781 | -6/Extension | Rescued a captive Derelict 13831 | -6/Extension | Discovered exit to Factory (range 10) 13833 | -6/Extension | Discovered new exit (range 6) 13841 | -6/Extension | Identified exit to Cetus 13910 | -6/Extension | Entered Cetus 13910 | -6/Cetus | Accompanied by 19 allies (A7) 13915 | -6/Cetus | Acquired a Cetus Manufacturing Module code from A7 13930 | -6/Cetus | Spotted Cetus Guard 13930 | -6/Cetus | Spotted Cetus Guard 13931 | -6/Cetus | Spotted Cetus Guard 13936 | -6/Cetus | Spotted Cetus Guard 13939 | -6/Cetus | Allies destroyed Cetus Guard 13945 | -6/Cetus | Allies destroyed Cetus Guard 13946 | -6/Cetus | Allies destroyed Cetus Guard 13952 | -6/Cetus | Allies destroyed Cetus Guard 14022 | -6/Cetus | Started Cetus Manufacturing Module 14047 | -6/Cetus | Manufactured an Enhanced Grunt 14068 | -6/Cetus | Discovered new exit (range 16) 14072 | -6/Cetus | Manufactured an Enhanced Grunt 14091 | -6/Cetus | Identified exit to Archives 14097 | -6/Cetus | Manufactured an Enhanced Grunt 14122 | -6/Cetus | Manufactured an Enhanced Grunt 14147 | -6/Cetus | Manufactured an Enhanced Grunt 14226 | -6/Cetus | Spotted Cetus Guard 14227 | -6/Cetus | Spotted Cetus Guard 14230 | -6/Cetus | Spotted Cetus Guard 14232 | -6/Cetus | Spotted Cetus Guard 14237 | -6/Cetus | Discovered exit to Factory (range 16) 14237 | -6/Cetus | Allies destroyed Cetus Guard 14240 | -6/Cetus | Allies destroyed Cetus Guard 14243 | -6/Cetus | Allies destroyed Cetus Guard 14243 | -6/Cetus | Allies destroyed Cetus Guard 14245 | -6/Cetus | Build established: Commander-Mutant 14247 | -6/Cetus | Met Revision 17 14327 | -6/Cetus | Entered Archives 14327 | -6/Archives | Accompanied by 18 allies (A7) 14357 | -6/Archives | Met Zhirov 14363 | -6/Archives | Reinforcements dispatched to Archives 14372 | -6/Archives | Discovered new exit (range 13) 14389 | -6/Archives | Identified exit to Hub_04(d) 14408 | -6/Archives | Reinforcements dispatched to Archives 14408 | -6/Archives | Entered Hub_04(d) 14408 | -6/Hub_04(d) | Accompanied by 13 allies 14452 | -6/Hub_04(d) | Garrison activated, responded to threat 14600 | -6/Hub_04(d) | System corruption reached 10% 14672 | -6/Hub_04(d) | Network Hub disabled 14687 | -6/Hub_04(d) | Spotted Lightning 14690 | -6/Hub_04(d) | Spotted Lightning 14694 | -6/Hub_04(d) | Spotted Lightning 14717 | -6/Hub_04(d) | Entered Factory 14717 | -5/Factory | Evolved 2 slots: Power x1, Utility x1 14874 | -5/Factory | Discovered new exit (range 15) 14896 | -5/Factory | Identified exit to Factory 15097 | -5/Factory | Identified exit to Upper Caves 15200 | -5/Factory | Entered Upper Caves 15509 | -5/Upper Caves | Build established: Scavenger-Assassin 16005 | -5/Upper Caves | Discovered new exit (range 9) 16017 | -5/Upper Caves | Identified exit to Upper Caves 16424 | -5/Upper Caves | Entered another Upper Caves area 16429 | -5/Upper Caves | Discovered exit to Factory (range 15) 16828 | -5/Upper Caves | Build established: Scavenger-Gunner 16837 | -5/Upper Caves | Discovered new exit (range 4) 16842 | -5/Upper Caves | Identified exit to Warlord 17225 | -5/Upper Caves | Entered Warlord 17492 | -5/Warlord | Found Prototype Special Weapon 17492 | -5/Warlord | Identified RU-N14's Throwing Claymores v3 17498 | -5/Warlord | Found RU-N14's Throwing Claymores v3 17501 | -5/Warlord | Found RU-N14's Throwing Claymores v3 17504 | -5/Warlord | Found RU-N14's Throwing Claymores v3 17507 | -5/Warlord | Found RU-N14's Throwing Claymores v3 17583 | -5/Warlord | Build established: Scavenger-Mutant 18056 | -5/Warlord | Warlord's base attacked by MAIN.C 18119 | -5/Warlord | Met EX-DEC 18120 | -5/Warlord | Found Prototype Energy Cannon 18214 | -5/Warlord | Met Warlord 18261 | -5/Warlord | Spotted B-75 Beast 18306 | -5/Warlord | Warlord forces counterattacked 18344 | -5/Warlord | Destroyed 12 combat bots 18355 | -5/Warlord | Discovered new exit (range 14) 18358 | -5/Warlord | Spotted Executioner 18362 | -5/Warlord | Destroyed Executioner 18388 | -5/Warlord | Identified exit to Proximity Caves 18389 | -5/Warlord | Destroyed 12 combat bots 18390 | -5/Warlord | Entered Proximity Caves 18457 | -4/Proximity Caves | Learned 8 Research zone layouts 18694 | -4/Proximity Caves | Build established: Scavenger-Gunner 18799 | -4/Proximity Caves | Discovered exit to Factory (range 12) 18822 | -4/Proximity Caves | Entered Factory 18822 | -4/Factory | Evolved 2 slots: Utility x1, Weapon x1 19122 | -4/Factory | Build established: Scavenger-Skirmisher 19572 | -4/Factory | Lost 8 parts (2p1n3u2w) 19578 | -4/Factory | Destroyed 10 combat bots 19831 | -4/Factory | Lost 9 parts (2p3n2u2w) 19986 | -4/Factory | Discovered new exit (range 8) 19996 | -4/Factory | Identified exit to Research 19997 | -4/Factory | Entered Research 19997 | -3/Research | Evolved 2 slots: Weapon x2 19998 | -3/Research | Identified exit to Research 19998 | -3/Research | Identified exit to Testing 20232 | -3/Research | Entered another Research area 20232 | -2/Research | Warlord forces began assault on 0b10 20232 | -2/Research | Evolved 2 slots: Propulsion x1, Utility x1 20342 | -2/Research | Research machine network offline 20362 | -2/Research | Identified exit to Garrison 20376 | -2/Research | Entered Garrison 20399 | -2/Garrison | Build established: Scavenger-Mutant 20421 | -2/Garrison | Spotted B-90 Cyclops 20422 | -2/Garrison | Triggered checkpoint 20425 | -2/Garrison | Triggered checkpoint 20433 | -2/Garrison | Destroyed B-90 Cyclops 20460 | -2/Garrison | Triggered checkpoint 20463 | -2/Garrison | Triggered checkpoint 20497 | -2/Garrison | Garrison Relay disabled 20500 | -2/Garrison | Triggered checkpoint 20611 | -2/Garrison | Identified BFG-9k Vortex Edition 20653 | -2/Garrison | Lost 3 parts (1n1u1w) 20685 | -2/Garrison | Destroyed 14 combat bots 20753 | -2/Garrison | Lost 3 parts (1p2n) 21020 | -2/Garrison | Triggered checkpoint 21040 | -2/Garrison | Discovered new exit (range 14) 21077 | -2/Garrison | Identified exit to Research 21093 | -2/Garrison | Installed Relay Interface Framework 21236 | -2/Garrison | Discovered exit to Research (range 10) 21247 | -2/Garrison | Triggered checkpoint 21275 | -2/Garrison | Triggered checkpoint 21300 | -2/Garrison | Garrison Relay disabled 21320 | -2/Garrison | Build established: Scavenger-Tank 21341 | -2/Garrison | Lost 3 parts (2n1u) 21442 | -2/Garrison | Entered Research 21527 | -2/Research | Identified exit to Garrison 21527 | -2/Research | Entered Garrison 21556 | -2/Garrison | Triggered checkpoint 21595 | -2/Garrison | Garrison Relay disabled 21762 | -2/Garrison | Triggered checkpoint 21763 | -2/Garrison | Spotted B-90 Cyclops 21763 | -2/Garrison | Triggered checkpoint 21941 | -2/Garrison | Destroyed B-90 Cyclops 21970 | -2/Garrison | Lost 4 parts (1p1n2u) 21980 | -2/Garrison | Triggered checkpoint 22122 | -2/Garrison | Triggered checkpoint 22155 | -2/Garrison | Garrison Relay disabled 22238 | -2/Garrison | Discovered new exit (range 10) 22257 | -2/Garrison | Identified exit to Access 22271 | -2/Garrison | Expanded RIF knowledge: Watcher Feeds 22460 | -2/Garrison | Build established: Scavenger-Mutant 22468 | -2/Garrison | Triggered checkpoint 22499 | -2/Garrison | Garrison Relay disabled 22571 | -2/Garrison | Discovered exit to Access (range 12) 22908 | -2/Garrison | Lost 4 parts (1p2n1w) 22942 | -2/Garrison | Garrison Relay disabled 22991 | -2/Garrison | Triggered checkpoint 23044 | -2/Garrison | Lost 6 parts (1p3n2w) 23085 | -2/Garrison | Triggered checkpoint 23127 | -2/Garrison | Discovered exit to Access (range 13) 23302 | -2/Garrison | Build established: Scavenger-Gunner 23428 | -2/Garrison | Entered Access 23428 | -1/Access | Accompanied by 3 allies 23428 | -1/Access | Evolved 2 slots: Power x1, Utility x1 23623 | -1/Access | Found Gamma Bomb Array 23625 | -1/Access | Found Gamma Bomb Array 23646 | -1/Access | Energy Cycler disabled 23678 | -1/Access | First assault squad dispatched 23760 | -1/Access | Destroyed 7 combat bots 23812 | -1/Access | Lost 9 parts (1p4n1u3w) 23866 | -1/Access | Build established: Scavenger-Mutant 23891 | -1/Access | Found Centrium Greatsword 23894 | -1/Access | Found Centrium Greatsword 23899 | -1/Access | Found Centrium Greatsword 24512 | -1/Access | Garrison activated, responded to threat 24703 | -1/Access | Core integrity fell below 50% 24714 | -1/Access | Spotted B-99 Colossus 24753 | -1/Access | System corruption reached 10% 24761 | -1/Access | Core integrity fell below 20% 24793 | -1/Access | Lost 22 parts (4p7n7u4w) 24811 | -1/Access | Identified exit to Command 24820 | -1/Access | Destroyed by H-88 Terminator with KE Penetrator Last Messages --------------- 24762_ Slammed into P-80 Master. 24762_ System Guard destroyed. 24775_ NS2AWQVXPRX,&T&KXH6J5:=9SN:FKV4F SY1 24777_ R-10 Processor collects Sml. Battery. 24788_ Connecting with Terminal... 24791_ O-32 Director: "IFF HANDSHAKE FAILED. SECURING TERMINAL." 24795_ System corrupted: Heat flow error (+246). 24798_ ALERT: Hostiles spotted, dispatching reinforcements to Terminal A021. 24798_ Adv. Medium Treads destroyed. 24811_ Connecting with Terminal... >>Access(Branch) Found 1 branch access point: (108,236) Command Map updated. 24818_ Adv. Medium Treads destroyed. 24820_ System corrupted: Energy discharge (-29). 24820_ Penetrated by Slug. 24820_ Adv. Heat Sink destroyed. 24820_ Penetrated by Slug. Map ----- +----------------------------------------------------+ | ????????????# """"" #??????????????????????## | | ####????????##############??????????????? | | * #???????????????????????????????????????# ##### | | #???????????????????????????????????????? ??# | | #???????????????????????????????????????? #?# | | #?????????############??????????????????? #?# | | +?????????? #???????######?????? #?# | | ??????????????# #??????? ?????# ?+ | | ??????????????# #???????? !????# #?# | | ??????????????# #???????? ???# #?# | | ??????????????# #????????? ?### ### | | ???############ #?????????""Y"" # # | | ???# ! # #??????# """"" # "" # | | ???# # #??????# + "T # | | ???#"" " # #??????#! # # | | ???#"" """ # ###############??# ### | | ???#"" """ + #??## #### | | ???#T " # ##### # ! | | ???#"" # pp / | | ???#"" + p # ! | | ???#"" " #p # | | ???# """ # # | | ???# """ # # | | ???# " # # | | ???# # # | | ???# # @ #### | | ???# # #??? | | ???############ ########## #??? | | ??????????????# #???############## #??? | | ??????????????# #???# #######??? | | ??????????????# #???# ] #????????? | | ??????????????# #???# ! #????????? | | ??????????????# #???# % #????????? | | ??????????????##########???# * % #????????? | | ???????????????????????????####### ############### | | ????????????????????????????????# / | | ????????????????????????????????# ########## | | ????????????????????????????????# #????????# " | | ????????????????????????????????# #????????#""" | | ????????????????????????????????# #????????# """ | | ????????????????????????????????# # #### " | | ????????????????????????????????# # + | | ??????????????????????######????# # #### | | ??????????????????????# ???# #????????##### | | ??????????????????????# ?## ##???????# | | ??????????????????????# # #??#????# | | ??????????????????????# [ # ## #####? | | ??????????????????????# + + " | | ??????????????????????# # ########? ] | | ??????????????????????# # #???????# | +----------------------------------------------------+ Best States ------------- Heat Dissipation 78 Coolant Potential 100 Energy Generation 59 Energy Capacity 1170 Matter Stores 300 Matter Capacity 300 Sight Range 18 Robot Scan Range 16 Terrain Scan Range 16 Terrain Scan Density 210 Corruption Prevention 12 Armor Coverage 900 Resistance: TH 15 Power Shielding 33 Weapon Shielding 33 Weapon Cycling 15 Phase Shifting 15 Evasion (%) 55 Targeting Accuracy 14 Target Analysis 8 Core Analysis 6 Recoil Reduction 5 Offensive Hacking 11 Relay Coupler Types 2 Relay Coupler Value 69 Authchip Count 1 Item Schematics ----------------- Weapon Shielding | -7/Factory | Scanalyzed Adv. Targeting Computer | -7/Factory | Scanalyzed Centrium Heavy Treads | -4/Factory | Scanalyzed Centrium Medium Armor Plating | -4/Factory | Scanalyzed Robot Schematics ------------------ None Fabricated ------------ Nothing Alien Tech Used ----------------- None Achievements -------------- Error 47 Infiltrator Challenges ------------ None Game ------ Seed DecoderBlastGuard Manual? 0 Play Time 04:07:37 Cumulative 148.1 hours Start 2021.11.27 @ 18:50:06 End 2021.11.29 @ 02:23:22 Sessions 23 Manual Loads 0 Difficulty Rogue Special Mode None Game No. 86 Rogue 86 Adventurer 0 Explorer 0 Win Type - Total 3 Types 2/0/0/1/0/0/0/0/0 Lore% 71 Gallery% 78 Achievement% 56 Wizard Run 0 Options --------- ASCII 1 Keyboard 1 Movement Vi Keybinds 0 Fullscreen 2 Font 18/Cog Map View 76x50 Tactical HUD 1 Map Filters NONE Filters NONE Steam 0 RUN: d2558f04-5246-45ff-ac0a-af89f835db6e